{"text_format":"1","workbook":"xlsx","n_sheets":28,"sheets":["TD LISTA OPERACI","Datos Operaciones seleccionadas","TD CUADRO 1","COPIA TDCUADRO1 ORDENAR CAT.REG","CUADRO 1 ","TD CUADRO 2","Copia TDCuadro 2 para carga SFC","FICHERO CARGA CUADRO2 SFC","CUADRO 2 ","Copia TDCuadro 2 con TSec","LISTAS PERSONALIZADAS","Programas","Fondos","Tasa cofinanciación","Prioridades","Objeticos específicos","Categorías de región","Aplicación art 94 o 95","Métodos de Gestión","Tipología de operación","CAMPO DE INTERVENCIÓN","Forma de ayuda","D. Intervención territorial","D. Actividad económica","D. Ubicación","D. Tema secundario del FSE+","D. Igualdad de género","Macrorregionales y Cuencas M"],"not_rendered":{"charts":0,"images":3,"macros":1,"external_links":1,"defined_names":16,"comments":0,"pivot_tables":3},"unopened":[],"bounds":{"document_bytes":16777216,"sheet_cells":100000,"rows_first":2000,"rows_last":500,"rows_between":2000,"halvings":0,"cell_chars":16384,"cell_head_chars":4096},"cells_cut":0,"cells_raw":0,"read":"whole","date_system":"1900"}

{"sheet":"TD LISTA OPERACI","index":0,"n_rows":22,"n_cols":15,"rows_kept":22,"cut":false,"hidden":true,"merged":[]}
[]
["Programa ",{"$f":"'Datos Operaciones seleccionadas'!B8","v":"FSE+ C.A. Illes Balears "}]
["LISTA DE OPERACIONES SELECCIONADAS"]
["Según requerimiento del artículo 49, apartado 3 del Reglamento (UE) 2021/1060"]
["Actualizado el ","DD/MM/AAAA"]
[]
["Código operación","Beneficiario","Contratista","Finalidad operación","Logros previstos o reales","Fecha Inicio","Fecha\nFinalización","Fondo","Objetivo específico","Categoría de región","Porcentaje de cofinanciación","D. Ubicación","País","Campo de intervención","Coste total "]
["Título Programa","(Todas)"]
[]
["Código operación","Beneficiario","Contratista","Finalidad operación","Logros previstos o reales","Fecha Inicio","Fecha\nFinalización","Fondo","Objetivo específico","Categoría de región","Porcentaje de cofinanciación","D. Ubicación","País","Campo de intervención","Suma de Coste subvencionable de la operación aprobada"]
["Becas 21-22","SERVICIO DE OCUPACIÓN DE LAS ISLAS BALEARES","(en blanco)","Becas de segunda oportunidad para jóvenes desempleados para cursar 2-4 Eso o FP curso 21-22","EECR03",44440,44804,"ESF","ESO4.6","T",0.6,"ES53","ES",151,1200000]
["SJFO2022","SERVICIO DE OCUPACIÓN DE LAS ISLAS BALEARES","(en blanco)","Facilitar la incorporación al mercado laboral de jóvenes incritos en garantía Juvenil mediante proyetcos mixtos de formación y ocupación","EECR05",44743,45275,"ESF","ESO4.1","T",0.6,"ES53","ES",149,6000000]
["Becas 23-25","SERVICIO DE OCUPACIÓN DE LAS ISLAS BALEARES","(en blanco)","Becas de segunda oportunidad para jóvenes desempleados para cursar 2-4 Eso o FP cursos 23-25","EECR03",44805,45899,"ESF","ESO4.6","T",0.6,"ES53","ES",151,3600000]
["SJFO2023","SERVICIO DE OCUPACIÓN DE LAS ISLAS BALEARES","(en blanco)","Facilitar la incorporación al mercado laboral de jóvenes incritos en garantía Juvenil mediante proyetcos mixtos de formación y ocupación","EECR05",45306,46020,"ESF","ESO4.1","T",0.6,"ES53","ES",149,6000000]
["ITINERARIOS PROSTITUCIÓN Y VENTA AMBULANTES","DIRECCIÓN GENERAL DE COOPERACIÓN E INMIGRACIÓN","(en blanco)","Facilitar el abandono del ejercicio de la prostitución y de la venta ambulante no autorizada.","ER516",44896,45657,"ESF","ESO4.8","T",0.6,"ES53","ES",153,3955971.9]
["PI 23-24","SERVICIO DE OCUPACIÓN DE LAS ISLAS BALEARES","(en blanco)","La finalidad es la inserción dentro del mundo laboral o en el sistema de formación de los colectivos vulnerables destinatarios de la operación","EECR05",44927,45657,"ESF","ESO4.8","T",0.6,"ES53","ES",153,2382000]
["PI 23-24 GJ","SERVICIO DE OCUPACIÓN DE LAS ISLAS BALEARES","(en blanco)","La finalidad es la inserción dentro del mundo laboral o en el sistema de formación de los jóvenes con riesgo de exclusión social destinatarios de la operación","EECR05",44927,45657,"ESF","ESO4.1","T",0.6,"ES53","ES",153,700000]
["REACT 23","SERVICIO DE OCUPACIÓN DE LAS ISLAS BALEARES","(en blanco)","La finalidad es  fomentar la contratación de personas en situación de desempleo de larga duración, para que puedan adquirir experiencia profesional y mantener sus competencias profesionales, con objeto de mejorar la empleabilidad y transitar hacia una inserción laboral continuada y de calidad","EECR05",45231,45535,"ESF","ESO4.1","T",0.6,"ES53","ES",135,6500000]
["REACT 23 GJ","SERVICIO DE OCUPACIÓN DE LAS ISLAS BALEARES","(en blanco)","La finalidad es  fomentar la contratación de personas jóvenes en situación de desempleo de larga duración, para que puedan adquirir experiencia profesional y mantener sus competencias profesionales, con objeto de mejorar la empleabilidad y transitar hacia una inserción laboral continuada y de calidad","EECR05",45231,45535,"ESF","ESO4.1","T",0.6,"ES53","ES",136,6500000]
["SOP 23-24","SERVICIO DE OCUPACIÓN DE LAS ISLAS BALEARES","(en blanco)","La finalidad del concierto es ofrecer servicio de orientación profesional a través de Entidades del Tercer Sector y que van dirigidos a colectivos vulnerables.","EECR05",44927,45716,"ESF","ESO4.8","T",0.6,"ES53","ES",153,14766939.9]
["SOP 23-24 Jóvenes","SERVICIO DE OCUPACIÓN DE LAS ISLAS BALEARES","(en blanco)","Concierto con Entidades del Tercer Sector parar la prestación del Servicio de Orientación Profesional dirigido a jóvenes con riesgo de exclusión social con la finalidad ayudar a las personas usuarias a mejorar su empleabilidad, promover su carrera profesional y facilitar su contratación u orientar hacia el autoempleo","EECR05",44927,45716,"ESF","ESO4.1","T",0.6,"ES53","ES",153,4161592.15]
["SOIB Dona 2022-2024","SERVICIO DE OCUPACIÓN DE LAS ISLAS BALEARES","(en blanco)","La finalidad es cubrir los costes salariales de las Entidades que contraten mujeres víctimas de violencia de género","EECR05",44785,45869,"ESF","ESO4.1","T",0.6,"ES53","ES",134,4000000]

{"sheet":"Datos Operaciones seleccionadas","index":1,"n_rows":34,"n_cols":46,"rows_kept":34,"cut":false,"hidden":false,"merged":[]}
["Programa:",{"$f":"B8","v":"FSE+ C.A. Illes Balears "}]
[]
[]
["DATOS OPERACIONES SELECCIONADAS."]
[]
[]
["CCI Programa","Título Programa","Prioridad","Objetivo específico","Fondo","Categoría de región","Código global de la operación","Descripción de la operación","Operación estratégica\n(SI/NO)","Aplicación art. 94 o art.95","Código común \nmétodos de gestión","Método de Gestión","Tipología de operación","Código operación","Nombre  operación","Beneficiario","Contratista","Finalidad operación","Logros previstos o reales","Fecha Inicio","Fecha\nFinalización","Coste subvencionable de la operación aprobada","Financiación privada nacional","País","Campo de intervención","Forma de ayuda","D. Aplicación Territorial","D. Actividad Económica","D. Ubicación","D. Tema secundario del FSE+ 01","D. Tema secundario del FSE+ 02","D. Tema secundario del FSE+ 03","D. Tema secundario del FSE+ 04","D. Tema secundario del FSE+ 05","D. Tema secundario del FSE+ 06","D. Tema secundario del FSE+ 07","D. Tema secundario del FSE+ 08","D. Tema secundario del FSE+ 09","D. Tema secundario del FSE+ 10","D. Igualdad de Género","D. Macrorregional y de las cuencas marítimas","Importe total del gasto subvencionable declarado por los beneficiarios","Contribución pública total (nacional+comunitaria)","Financiación pública nacional","Contribución de los fondos a las operaciones seleccionadas (EUR)","Porcentaje de cofinanciación"]
["2021ES05SFPR008","FSE+ C.A. Illes Balears ",5,"ESO4.6","ESF","T",null,"Becas Programa de Segunda Oportunidad 2021-2022 ESO y FP","NO","N/A",null,"CS","4","Becas 21-22","Becas 21-22","SERVICIO DE OCUPACIÓN DE LAS ISLAS BALEARES",null,"Becas de segunda oportunidad para jóvenes desempleados para cursar 2-4 Eso o FP curso 21-22","EECR03",44440,44804,1200000,0,"ES",151,"01",30,21,"ES53",null,null,null,null,null,null,null,null,null,"10","02","08",0,{"$f":"AR8+AS8","v":1200000},{"$f":"V8-(AS8+W8)","v":480000},{"$f":"V8*AT8","v":720000},{"$f":"IF(A8=\"2021ES05SFPR009\",85%,IF(A8=\"2021ES05SFPR004\",90%,IF(C8=\"6\",95%,IF(F8=\"M\",40%,IF(F8=\"T\",60%,IF(F8=\"L\",85%,0))))))","v":0.6}]
["2021ES05SFPR008","FSE+ C.A. Illes Balears ",5,"ESO4.1","ESF","T",null,"Proyectos Mixtos de Formación y Ocupación 2022","NO","N/A",null,"CS","1A","SJFO2022","Proyectos Mixtos 2022","SERVICIO DE OCUPACIÓN DE LAS ISLAS BALEARES",null,"Facilitar la incorporación al mercado laboral de jóvenes incritos en garantía Juvenil mediante proyetcos mixtos de formación y ocupación","EECR05",44743,45275,6000000,0,"ES",149,"01",30,21,"ES53","01","02",null,null,"05",null,null,null,null,"10","02","08",0,{"$f":"AR9+AS9","v":6000000},{"$f":"V9-(AS9+W9)","v":2400000},{"$f":"V9*AT9","v":3600000},{"$f":"IF(A9=\"2021ES05SFPR009\",85%,IF(A9=\"2021ES05SFPR004\",90%,IF(C9=\"6\",95%,IF(F9=\"M\",40%,IF(F9=\"T\",60%,IF(F9=\"L\",85%,0))))))","v":0.6}]
["2021ES05SFPR008","FSE+ C.A. Illes Balears ",5,"ESO4.6","ESF","T",null,"Becas Programa de Segunda Oportunidad 2022-2025 ESO y FP","NO","N/A",null,"CS","4","Becas 23-25","Becas 23-25","SERVICIO DE OCUPACIÓN DE LAS ISLAS BALEARES",null,"Becas de segunda oportunidad para jóvenes desempleados para cursar 2-4 Eso o FP cursos 23-25","EECR03",44805,45899,3600000,0,"ES",151,"01",30,21,"ES53",null,null,null,null,null,null,null,null,null,"10","02","08",0,{"$f":"AR10+AS10","v":3600000},{"$f":"V10-(AS10+W10)","v":1440000},{"$f":"V10*AT10","v":2160000},{"$f":"IF(A10=\"2021ES05SFPR009\",85%,IF(A10=\"2021ES05SFPR004\",90%,IF(C10=\"6\",95%,IF(F10=\"M\",40%,IF(F10=\"T\",60%,IF(F10=\"L\",85%,0))))))","v":0.6}]
["2021ES05SFPR008","FSE+ C.A. Illes Balears ",5,"ESO4.1","ESF","T",null,"Proyectos Mixtos de Formación y Ocupación 2023","NO","N/A",null,"CS","1A","SJFO2023","Proyectos Mixtos 2023","SERVICIO DE OCUPACIÓN DE LAS ISLAS BALEARES",null,"Facilitar la incorporación al mercado laboral de jóvenes incritos en garantía Juvenil mediante proyetcos mixtos de formación y ocupación","EECR05",45306,46020,6000000,0,"ES",149,"01",30,21,"ES53","01","02",null,null,"05",null,null,null,null,"10","02","08",0,6000000,2400000,3600000,0.6]
["2021ES05SFPR008","FSE+ C.A. Illes Balears ",2,"ESO4.8","ESF","T",null,"Itinerarios de Atención Social dirigidos a facilitar el abandono del ejercicio de la prostitución y de la venta ambulante no autorizada.","NO","N/A",null,"CS",2,"ITINERARIOS PROSTITUCIÓN Y VENTA AMBULANTES","ITINERARIOS PROSTITUCIÓN Y VENTA AMBULANTES","DIRECCIÓN GENERAL DE COOPERACIÓN E INMIGRACIÓN",null,"Facilitar el abandono del ejercicio de la prostitución y de la venta ambulante no autorizada.","ER516",44896,45657,3955971.9,0,"ES",153,"01",30,23,"ES53",null,null,null,null,"05",null,null,null,null,null,"02","08",0,3955971.9,1582388.7600000002,2373583.1399999997,0.6]
["2021ES05SFPR008","FSE+ C.A. Illes Balears ",2,"ESO4.8","ESF","T",null,"Itinerarios Integrales de inserción 23-24 destinados a colectivos vulnerables","SI","N/A",null,"CS","2","PI 23-24","Itinerarios Integrales de inserción 23-24 ","SERVICIO DE OCUPACIÓN DE LAS ISLAS BALEARES",null,"La finalidad es la inserción dentro del mundo laboral o en el sistema de formación de los colectivos vulnerables destinatarios de la operación","EECR05",44927,45657,2382000,0,"ES",153,"01",30,23,"ES53",null,null,null,null,"05",null,null,null,null,null,"02","08",0,2382000,952800,1429200,0.6]
["2021ES05SFPR008","FSE+ C.A. Illes Balears ",5,"ESO4.1","ESF","T",null,"Itinerarios Integrales de inserción 23-24 dirigido a jóvenes con riesgo de exclusión social","NO","N/A",null,"CS","2","PI 23-24 GJ","Itinerarios Integrales de inserción 23-24 jóvenes","SERVICIO DE OCUPACIÓN DE LAS ISLAS BALEARES",null,"La finalidad es la inserción dentro del mundo laboral o en el sistema de formación de los jóvenes con riesgo de exclusión social destinatarios de la operación","EECR05",44927,45657,700000,0,"ES",153,"01",30,21,"ES53","01","02",null,null,"05",null,null,null,null,"10","02","08",0,700000,280000,420000,0.6]
["2021ES05SFPR008","FSE+ C.A. Illes Balears ",1,"ESO4.1","ESF","T",null,"Fomento de la ocupación para personas (de más de 30 años) desempleadas de larga duración","NO","N/A",null,"CS","8","REACT 23","SOIB Reactiva 23","SERVICIO DE OCUPACIÓN DE LAS ISLAS BALEARES",null,"La finalidad es  fomentar la contratación de personas en situación de desempleo de larga duración, para que puedan adquirir experiencia profesional y mantener sus competencias profesionales, con objeto de mejorar la empleabilidad y transitar hacia una inserción laboral continuada y de calidad","EECR05",45231,45535,6500000,0,"ES",135,"01",30,20,"ES53","01","02","03","04","05",null,null,null,null,"10","02","08",0,6500000,2600000,3900000,0.6]
["2021ES05SFPR008","FSE+ C.A. Illes Balears ",5,"ESO4.1","ESF","T",null,"Fomento de la ocupación para personas jóvenes (de menos de 30 años) desempleadas de larga duración","NO","N/A",null,"CS","5A","REACT 23 GJ","SOIB Reactiva 23 Jóvenes","SERVICIO DE OCUPACIÓN DE LAS ISLAS BALEARES",null,"La finalidad es  fomentar la contratación de personas jóvenes en situación de desempleo de larga duración, para que puedan adquirir experiencia profesional y mantener sus competencias profesionales, con objeto de mejorar la empleabilidad y transitar hacia una inserción laboral continuada y de calidad","EECR05",45231,45535,6500000,0,"ES",136,"01",30,20,"ES53","01","02",null,null,"05",null,null,null,null,"10","02","08",0,6500000,2600000,3900000,0.6]
["2021ES05SFPR008","FSE+ C.A. Illes Balears ",1,"ESO4.1","ESF","T",null,"Fomento del empleo para mujeres víctimas de violencia de género","NO","N/A",null,"CS","5A","SOIB Dona 2022-2024","SOIB Dona","SERVICIO DE OCUPACIÓN DE LAS ISLAS BALEARES",null,"La finalidad es cubrir los costes salariales de las Entidades que contraten mujeres víctimas de violencia de género","EECR05",44785,45869,4000000,0,"ES",134,"01",30,20,"ES53","01","02","03","04","05",null,null,null,null,"10","02","08",0,4000000,1600000,2400000,0.6]
["2021ES05SFPR008","FSE+ C.A. Illes Balears ",2,"ESO4.8","ESF","T",null,"Concierto para la prestación del Servicio de Orientación Profesional 23-24 destinado a colectivos vulnerables","SI","N/A",null,"GC-CONC",3,"SOP 23-24","Concierto Servicio de Orientación Profesional 23-24","SERVICIO DE OCUPACIÓN DE LAS ISLAS BALEARES",null,"La finalidad del concierto es ofrecer servicio de orientación profesional a través de Entidades del Tercer Sector y que van dirigidos a colectivos vulnerables.","EECR05",44927,45716,14766939.9,0,"ES",153,"01",30,23,"ES53",null,null,null,null,"05",null,null,null,null,null,"02","08",0,14766939.9,5906775.9600000009,8860163.9399999995,0.6]
["2021ES05SFPR008","FSE+ C.A. Illes Balears ",5,"ESO4.1","ESF","T",null,"Concierto para la prestación del Servicio de Orientación Profesional 23-24 destinado a jóvenes con riesgo de exclusión social","SI","N/A",null,"GC-CONC",3,"SOP 23-24 Jóvenes","SOP 23-24 Jóvenes","SERVICIO DE OCUPACIÓN DE LAS ISLAS BALEARES",null,"Concierto con Entidades del Tercer Sector parar la prestación del Servicio de Orientación Profesional dirigido a jóvenes con riesgo de exclusión social con la finalidad ayudar a las personas usuarias a mejorar su empleabilidad, promover su carrera profesional y facilitar su contratación u orientar hacia el autoempleo","EECR05",44927,45716,4161592.15,0,"ES",153,"01",30,23,"ES53","01","02",null,null,"05",null,null,null,null,"10","02","08",0,4161592.15,1664636.8599999999,2496955.29,0.6]
["2021ES05SFPR008","FSE+ C.A. Illes Balears ",5,"ESO4.1","ESF","T",null,"Ayudas a la contratación  para la ocupación de personas jóvenes con estudios cualificados en el sector público instrumental de la CAIB, la Universitat de les Illes Balears y las entidades locales de las Islas Baleares y entidades que dependen de éstas.","SI","N/A",null,"CS","5A","SOIB Jove 24","SOIB Jove 24","SERVICIO DE OCUPACIÓN DE LAS ISLAS BALEARES",null,"Convocatoria de ayudas a la contratación  para la ocupación de personas jóvenes con estudios cualificados en el sector público instrumental de la CAIB, la Universitat de les Illes Balears y las entidades locales de las Islas Baleares y entidades que dependen de éstas.","EECR05",45474,46006,10500000,0,"ES",136,"01",30,20,"ES53","01","02",null,null,"05",null,null,null,null,"10","02","08",0,{"$f":"AR20+AS20","v":10500000},{"$f":"V20-(AS20+W20)","v":4200000},{"$f":"V20*AT20","v":6300000},{"$f":"IF(A20=\"2021ES05SFPR009\",85%,IF(A20=\"2021ES05SFPR004\",90%,IF(C20=\"6\",95%,IF(F20=\"M\",40%,IF(F20=\"T\",60%,IF(F20=\"L\",85%,0))))))","v":0.6}]
["2021ES05SFPR008","FSE+ C.A. Illes Balears ",1,"ESO4.1","ESF","T",null,"Fomento de la ocupación para personas (de más de 30 años) desempleadas de larga duración","NO","N/A",null,"CS","8","REACT 24","SOIB Reactiva 24","SERVICIO DE OCUPACIÓN DE LAS ISLAS BALEARES",null,"La finalidad es  fomentar la contratación de personas en situación de desempleo de larga duración, para que puedan adquirir experiencia profesional y mantener sus competencias profesionales, con objeto de mejorar la empleabilidad y transitar hacia una inserción laboral continuada y de calidad","EECR05",45627,46012,7000000,0,"ES","135","01",30,23,"ES53",null,null,null,null,"05",null,null,null,null,null,"02","08",0,7000000,2800000,4200000,{"$f":"IF(A21=\"2021ES05SFPR009\",85%,IF(A21=\"2021ES05SFPR004\",90%,IF(C21=\"6\",95%,IF(F21=\"M\",40%,IF(F21=\"T\",60%,IF(F21=\"L\",85%,0))))))","v":0.6}]
["2021ES05SFPR008","FSE+ C.A. Illes Balears ",5,"ESO4.1","ESF","T",null,"Fomento de la ocupación para personas jóvenes (de menos de 30 años) desempleadas de larga duración","NO","N/A",null,"CS","5A","REACT 24 GJ","SOIB Reactiva 24 Jóvenes","SERVICIO DE OCUPACIÓN DE LAS ISLAS BALEARES",null,"La finalidad es  fomentar la contratación de personas jóvenes en situación de desempleo de larga duración, para que puedan adquirir experiencia profesional y mantener sus competencias profesionales, con objeto de mejorar la empleabilidad y transitar hacia una inserción laboral continuada y de calidad","EECR05",45627,46012,7000000,0,"ES",136,"01",30,20,"ES53","01","02",null,null,"05",null,null,null,null,"10","02","08",0,7000000,2800000,4200000,0.6]
["2021ES05SFPR008","FSE+ C.A. Illes Balears ",2,"ESO4.8","ESF","T",null,"Itinerarios de Atención Social dirigidos a facilitar el abandono del ejercicio de la prostitución y de la venta ambulante no autorizada 2025-2026.","NO","N/A",null,"CS","2","ITINERARIOS PROSTITUCIÓN Y VENTA AMBULANTES 2025-2026","ITINERARIOS PROSTITUCIÓN Y VENTA AMBULANTES 2025-2026","DIRECCIÓN GENERAL DE COOPERACIÓN E INMIGRACIÓN",null,"La finalidad es facilitar el abandono del ejercicio de la prostitución y de la venta ambulante no autorizada","ER516",45627,46356,1974011.68,0,"ES","153","01",30,23,"ES53",null,null,null,null,"05",null,null,null,null,null,"02","08",0,1974011.68,789604.67200000002,1184407.0079999999,0.6]
["2021ES05SFPR008","FSE+ C.A. Illes Balears ","3","ESO4.5","ESF","T",null,"Ayudas para la formación de personal investigador 2023","NO","N/A",null,"CS",4,"PREDOC 2023","Predoctorales 2023: Ayudas para la formación de personal investigador (FPI) y la formación de personal investigador empresarial (FPI-E),\nasí como subvenciones para tasas académicas (FPI 2023)","DIRECCIÓN GENERAL DE UNIVERSIDADES, INVESTIGACIÓN Y ENSEÑANZAS ARTÍSTICAS SUPERIORES",null,"La finalidad es financiar ayudas para formar en investigación científica y técnica a titulados superiores universitarios que quieran hacer una tesis doctoral","EECR03",45658,47208,2806024,0,"ES","150","01",30,21,"ES53","01","02","03",null,null,null,null,null,null,"10","02","08",0,2806024,1122409.6000000001,1683614.4,0.6]
["2021ES05SFPR008","FSE+ C.A. Illes Balears ",1,"ESO4.1","ESF","T",null,"Ayudas para incorporar personal investigador al sistema de ciencia de las Illes Balears 2023","NO","N/A",null,"CS","5A","POSTDOC 2023","Postdoctorales 2023: Ayudas para incorporar personal investigador al sistema de ciencia de las Illes Balears (contratos\npostdoctorales 2023)","DIRECCIÓN GENERAL DE UNIVERSIDADES, INVESTIGACIÓN Y ENSEÑANZAS ARTÍSTICAS SUPERIORES",null,"La finalidad es conceder ayudas para incorporar personal investigador al sistema de ciencia de las Illes Balears (contratos postdoctorales 2023), como medida de fomento de la investigación científica y tecnológica para fortalecer la capacidad de investigación de los grupos de I+D y permitir que alcancen la condición de grupos de investigación competitivos","EECR05",45658,47483,3347400,0,"ES","134","01",30,21,"ES53","01","02","03","04","05",null,null,null,null,"10","02","08",0,3347400,1338960,2008440,0.6]
["2021ES05SFPR008","FSE+ C.A. Illes Balears ",2,"ESO4.8","ESF","T",null,"Itinerarios Integrales de inserción 2025-2026 destinados a colectivos vulnerables","SI","N/A",null,"CS",2,"PI 25-26","SOIB Itinerarios Integrales de inserción 2025-2026","SERVICIO DE OCUPACIÓN DE LAS ISLAS BALEARES",null,"La finalidad es la inserción dentro del mundo laboral o en el sistema de formación de los colectivos vulnerables destinatarios de la operación","EECR05",45658,46387,2382000,0,"ES","153","01",30,23,"ES53",null,null,null,null,"05",null,null,null,null,null,"02","08",0,2382000,952800,1429200,0.6]
["2021ES05SFPR008","FSE+ C.A. Illes Balears ",5,"ESO4.1","ESF","T",null,"Itinerarios Integrales de inserción 2025-2026 dirigido a jóvenes con riesgo de exclusión social","SI","N/A",null,"CS","2","PI 25-26 GJ","SOIB Itinerarios Integrales de inserción 2025-2026 GJ","SERVICIO DE OCUPACIÓN DE LAS ISLAS BALEARES",null,"La finalidad es la inserción dentro del mundo laboral o en el sistema de formación de los jóvenes con riesgo de exclusión social destinatarios de la operación","EECR05",45658,46387,700000,0,"ES","153","01",30,21,"ES53","01","02",null,null,"05",null,null,null,null,"10","02","08",0,700000,280000,420000,0.6]
["2021ES05SFPR008","FSE+ C.A. Illes Balears ",1,"ESO4.1","ESF","T",null,"Ayudas a la contratación para el empleo de mujeres víctimas de violencia de género","NO","N/A",null,"CS","5A","SOIB DONA 25-28","SOIB - Oportunidades de Empleo para la Mujer 2025-2028","SERVICIO DE OCUPACIÓN DE LAS ISLAS BALEARES",null,"La finalidad es promover la independencia económica y el empoderamiento de las mujeres participantes, al mismo tiempo que refuerza sus posibilidades de una posterior inserción laboral estable\n","EECR05",45691,46996,6000000,0,"ES","134","01",30,20,"ES53","01","02","03","04","05",null,null,null,null,"10","02","08",0,6000000,2400000,3600000,0.6]
["2021ES05SFPR008","FSE+ C.A. Illes Balears ",5,"ESO4.1","ESF","T",null,"Ayudas para la contratación de personas jóvenes con estudios cualificados en las entidades locales de las Islas Baleares y sus entidades vinculadas o dependientes, con el fin de que adquieran experiencia laboral ligada a su formación y que desarrollen habilidades que aumenten sus posibilidades de inserción laboral posterior en empleos cualificados","SI","N/A",null,"CS","5A","SJQEL 2025","SOIB-Oportunidades de Empleo para Personas Jóvenes Cualificadas en Entidades Locales 2025","SERVICIO DE OCUPACIÓN DE LAS ISLAS BALEARES",null,"Convocatoria de subvenciones SOIB - Oportunidades de Empleo para Personas Jóvenes Cualificadas en Entidades Locales 2025","EECR05",45778,46813,10000000,0,"ES",136,"01",30,20,"ES53","01","02",null,null,"05",null,null,null,null,"10","02","08",0,10000000,4000000,6000000,0.6]
["2021ES05SFPR008","FSE+ C.A. Illes Balears ","3","ESO4.5","ESF","T",null,"Ayudas para la formación de personal investigador (FPI) y la formación de personal investigador empresarial (FPI-E), así como subvenciones para tasas académicas (FPI 2024)","NO","N/A",null,"CS",4,"PREDOC 2024","Predoctorales 2024: Ayudas para la formación de personal investigador (FPI) y la formación de personal investigador empresarial (FPI-E),\nasí como subvenciones para tasas académicas (FPI 2024)","DIRECCIÓN GENERAL DE UNIVERSIDADES, INVESTIGACIÓN Y ENSEÑANZAS ARTÍSTICAS SUPERIORES",null,"La finalidad financiar ayudas para formar personal investigador, con el objetivo de formar en investigación científica y técnica a titulados superiores universitarios que quieran hacer una tesis doctoral","EECR03",45901,47483,3593131.88,0,"ES","150","01",30,21,"ES53","01","02","03",null,null,null,null,null,null,"10","02","08",0,3593131.88,1437252.7519999999,2155879.128,0.6]
["2021ES05SFPR008","FSE+ C.A. Illes Balears ",1,"ESO4.1","ESF","T",null,"Ayudas para incorporar personal investigador al ecosistema de ciencia, tecnología e innovación de las Illes Balears (contratos postdoctorales 2024) ","NO","N/A",null,"CS","5A","POSTDOC 2024","Postdoctorales 2024: Ayudas para incorporar personal investigador al ecosistema de ciencia, tecnología e innovación de las Illes Balears (contratos postdoctorales 2024)","DIRECCIÓN GENERAL DE UNIVERSIDADES, INVESTIGACIÓN Y ENSEÑANZAS ARTÍSTICAS SUPERIORES",null,"La finalidad es conceder ayudas para incorporar personal investigador al ecosistema de ciencia, tecología e innovación de las Illes Balears (contratos postdoctorales 2024), como medida de fomento de la investigación científica y tecnológica para fortalecer la capacidad de investigación de los grupos de I+D y permitir que alcancen la condición de grupos de investigación competitivos","EECR05",45779,47483,3317700,0,"ES","134","01",30,21,"ES53","01","02","03","04","05",null,null,null,null,"10","02","08",0,3317700,1327080,1990620,0.6]
["2021ES05SFPR008","FSE+ C.A. Illes Balears ","3","ESO4.5","ESF","T",null,"Convocatoria de ayudas de formación para contratar personal investigador no doctor en el ámbito de la salud (ayudas PFIS-CAIB y PFIC-CAIB), corresponendientes al período 2025-2029 ","NO","N/A",null,"CS",4,"PREDOC SALUD 25-29","Convocatoria de ayudas de formación para contratar personal investigador no doctor en el ámbito de la salud (ayudas PFIS-CAIB y PFIC-CAIB), corresponendientes al período 2025-2029 ","DIRECCIÓN GENERAL DE INVESTIGACIÓN EN SALUT, FORMACIÓN Y ACREDITACIÓN",null,"La finalidad es financiar ayudas para contratar personal destinadas a su formación como personal investigador en el ámbito de la biomedicina y de la salud, que contribuirán a incrementar su cualificación y profesionalización y a adquirir las competencias específicas de la fase inicial de la  carrera investigadora (etapa en formación, R1 o predoctoral); a promover la vocación investigadora entre los profesionales clínicos y a fortalecer la generación de conocimiento de frontera entre la investigación y su transferencia; así como otorgar ayudas para cubrir las tasas académicas para el personal investigador en formación, que incluyen la tutela académica del doctorado, la apertura y el mantenimiento del expediente, y la defensa de la tesis doctoral","EECR03",45901,47483,1200000,0,"ES","150","01",30,21,"ES53","01","02","03",null,null,null,null,null,null,"10","02","08",0,1200000,480000,720000,0.6]
["2021ES05SFPR008","FSE+ C.A. Illes Balears ",2,"ESO4.8","ESF","T",null,"Renovación de los Conciertos para la prestación del Servicio de Orientación para el Empleo 25-27 destinados a colectivos vulnerables (antes Servicio de Orientación Profesional 23-24)","SI","N/A",null,"GC-CONC","3","RENOVACIÓN CONCIERTOS SOO 25-27 (antes SOP 23-24)","Renovación de los Conciertos del Servicio de Orientación para colectivos de personas vulnerables 25-27 (antes Servicio de Orientación Profesional 23-24)","SOIB",null,"Renovación, para el período 2025-2027, del Concierto con Entidades del Tercer Sector de Acción Social parar la prestación del Servicio de Orientación para el Empleo (antes Servicio de Orientación Profesional) dirigido a personas vulnerables en riesgo de exclusión social con la finalidad de ayudar a las personas usuarias a mejorar su empleabilidad, promover su carrera profesional y facilitar su contratación u orientarlas hacia el autoempleo","EECR05","01/03/2025 o fecha de firma de cada acuerdo de renovación, si ésta es posterior","28/02/2027 o cuando se cumplan 2 años desde la firma del acuerdo de renovación",16193343,0,"ES",153,"01",30,23,"ES53",null,null,null,null,"05",null,null,null,null,null,"02","08",0,{"$f":"AR33+AS33","v":16193343},{"$f":"V33-(AS33+W33)","v":6477337.2000000011},{"$f":"V33*AT33","v":9716005.7999999989},{"$f":"IF(A33=\"2021ES05SFPR009\",85%,IF(A33=\"2021ES05SFPR004\",90%,IF(C33=\"6\",95%,IF(F33=\"M\",40%,IF(F33=\"T\",60%,IF(F33=\"L\",85%,0))))))","v":0.6}]
["2021ES05SFPR008","FSE+ C.A. Illes Balears ",5,"ESO4.1","ESF","T",null,"Renovación de los Conciertos para la prestación del Servicio de Orientación para el Empleo 25-27 destinados a jóvenes en riesgo de exclusión social (antes Servicio de Orientación Profesional 23-24)","SI","N/A",null,"GC-CONC","3","RENOVACIÓN CONCIERTOS SOO Jóvenes (antes SOP Jóvenes 23-24)","Renovación de los Conciertos del Servicio de Orientación para el Empleo para jóvenes 25-27 (antes Servicio de Orientación Profesional 23-24)","SOIB",null,"Renovación, para el período 2025-2027, del Concierto con Entidades del Tercer Sector de Acción Social parar la prestación del Servicio de Orientación para el Empleo (antes Servicio de Orientación Profesional) dirigido a jóvenes en riesgo de exclusión social con la finalidad de ayudar a las personas usuarias a mejorar su empleabilidad, promover su carrera profesional y facilitar su contratación u orientarlas hacia el autoempleo","EECR05","01/03/2025 o fecha de firma de cada acuerdo de renovación, si ésta es posterior","28/02/2027 o cuando se cumplan 2 años desde la firma del acuerdo de renovación",4428948,0,"ES",153,"01",30,23,"ES53","01","02",null,null,"05",null,null,null,null,"10","02","08",0,{"$f":"AR34+AS34","v":4428948},{"$f":"V34-(AS34+W34)","v":1771579.2000000002},{"$f":"V34*AT34","v":2657368.7999999998},{"$f":"IF(A34=\"2021ES05SFPR009\",85%,IF(A34=\"2021ES05SFPR004\",90%,IF(C34=\"6\",95%,IF(F34=\"M\",40%,IF(F34=\"T\",60%,IF(F34=\"L\",85%,0))))))","v":0.6}]

{"sheet":"TD CUADRO 1","index":2,"n_rows":4,"n_cols":8,"rows_kept":4,"cut":false,"hidden":true,"merged":[]}
[]
["Programa","(Varios elementos)",null,"1. Si  no aparecen datos, selecciona tu programa"]
[]
["Prioridad","Objetivo específico","Fondo","Categoría de región","Porcentaje de cofinanciación","Suma de Coste subvencionable de la operación aprobada","Suma de Importe total del gasto subvencionable declarado por los beneficiarios","Cuenta de Código operación"]

{"sheet":"COPIA TDCUADRO1 ORDENAR CAT.REG","index":3,"n_rows":5,"n_cols":15,"rows_kept":5,"cut":false,"hidden":true,"merged":[[1,0,1,6],[1,7,1,12]]}
[1,2,3,4,5,6,7,8,9,10,11,12,13]
["Asignación financiera de la prioridad en función del programa",null,null,null,null,null,null,"Datos acumulativos sobre la situación financiera del programa",null,null,null,null,null,null,"1. Arrastra hasta mostrar tantas filas como TD Cuadro 1."]
[]
["Prioridad","Objetivo específico","Fondo","Categoría de región","Base para el cálculo de la contribución de la Unión","Asignación financiera total por fondo y contribución nacional (EUR)","Porcentaje de cofinanciación (%)","Coste total subvencionable de las operaciones seleccionadas (EUR)","Contribución de los fondos a las operaciones seleccionadas (EUR)","Proporción de la asignación financiera total cubierta por las operaciones seleccionadas (%)","Importe total del gasto subvencionable declarado por los beneficiarios","Proporción de la asignación financiera total cubierta por el gasto subvencionable declarado por los beneficiarios (%)","Número de operaciones seleccionadas"]
[{"$f":"'TD CUADRO 1'!A5","v":0},{"$f":"'TD CUADRO 1'!B5","v":0},{"$f":"'TD CUADRO 1'!C5","v":0},{"$f":"'TD CUADRO 1'!D5","v":0},null,null,{"$f":"'TD CUADRO 1'!E5","v":0},{"$f":"'TD CUADRO 1'!F5","v":0},{"$f":"IFERROR(H5*G5,\"\")","v":0},{"$f":"IFERROR(H5/F5,\"\")","v":""},{"$f":"'TD CUADRO 1'!G5","v":0},{"$f":"IFERROR(K5/F5,\"\")","v":""},{"$f":"'TD CUADRO 1'!H5","v":0},null,"Compara/copia las columnas en gris con/en Cuadro 1"]

{"sheet":"CUADRO 1 ","index":4,"n_rows":13,"n_cols":13,"rows_kept":13,"cut":false,"hidden":true,"merged":[[1,0,1,6],[1,7,1,12]]}
[1,2,3,4,5,6,7,8,9,10,11,12,13]
["Asignación financiera de la prioridad en función del programa",null,null,null,null,null,null,"Datos acumulativos sobre la situación financiera del programa"]
[]
["Prioridad","Objetivo específico","Fondo","Categoría de región","Base para el cálculo de la contribución de la Unión","Asignación financiera total por fondo y contribución nacional (EUR)","Porcentaje de cofinanciación (%)","Coste total subvencionable de las operaciones seleccionadas (EUR)","Contribución de los fondos a las operaciones seleccionadas (EUR)","Proporción de la asignación financiera total cubierta por las operaciones seleccionadas (%)","Importe total del gasto subvencionable declarado por los beneficiarios","Proporción de la asignación financiera total cubierta por el gasto subvencionable declarado por los beneficiarios (%)","Número de operaciones seleccionadas"]
[1,"ESO4.1","FSE+","Transición","Total",10570000,null,0,{"$f":"IFERROR(H5*G5,\"\")","v":0},{"$f":"IFERROR(H5/F5,\"\")","v":0},null,{"$f":"IFERROR(K5/F5,\"\")","v":0}]
[2,"ESO4.8","FSE+","Transición","Total",42199998,null,null,{"$f":"IFERROR(H6*G6,\"\")","v":0},{"$f":"IFERROR(H6/F6,\"\")","v":0},null,{"$f":"IFERROR(K6/F6,\"\")","v":0}]
[2,"ESO4.11","FSE+","Transición","Total",10899212,null,null,0,0,null,0]
[3,"ESO4.5","FSE+","Transición","Total",52200000,null,null,0,0,null,0]
[5,"ESO4.1","FSE+","Transición","Total",44079998.579999998,null,null,0,0,null,0]
[5,"ESO4.6","FSE+","Transición","Total",2000001.42,null,null,0,0,null,0]
[7,"ESO4.11","FSE+","Transición","Total",8883290,null,null,0,0,null,0]
["Total",null,"FSE+","Transición",null,170832500,null,null,0,0,null,0]
["Total general",null,null,null,null,170832500,null,null,0,0,null,0]

{"sheet":"TD CUADRO 2","index":5,"n_rows":12,"n_cols":24,"rows_kept":12,"cut":false,"hidden":true,"merged":[]}
[]
["Título Programa","FSE+ C.A. Illes Balears "]
[]
["Prioridad","Objetivo específico","Fondo","Categoría de región","Campo de intervención","Forma de ayuda","D. Aplicación Territorial","D. Actividad Económica","D. Ubicación","D. Igualdad de Género","D. Macrorregional y de las cuencas marítimas","D. Tema secundario del FSE+ 01","D. Tema secundario del FSE+ 02","D. Tema secundario del FSE+ 03","D. Tema secundario del FSE+ 04","D. Tema secundario del FSE+ 05","D. Tema secundario del FSE+ 06","D. Tema secundario del FSE+ 07","D. Tema secundario del FSE+ 08","D. Tema secundario del FSE+ 09","D. Tema secundario del FSE+ 10","Suma de Coste subvencionable de la operación aprobada","Suma de Importe total del gasto subvencionable declarado por los beneficiarios","Cuenta de Código operación"]
[1,"ESO4.1","ESF","T",134,"01",30,20,"ES53","02","08","01","02","03","04","05","(en blanco)","(en blanco)","(en blanco)","(en blanco)","10",4000000,0,1]
[1,"ESO4.1","ESF","T",135,"01",30,20,"ES53","02","08","01","02","03","04","05","(en blanco)","(en blanco)","(en blanco)","(en blanco)","10",6500000,0,1]
[2,"ESO4.8","ESF","T",153,"01",30,23,"ES53","02","08","(en blanco)","(en blanco)","(en blanco)","(en blanco)","05","(en blanco)","(en blanco)","(en blanco)","(en blanco)","(en blanco)",21104911.800000001,0,3]
[5,"ESO4.1","ESF","T",136,"01",30,20,"ES53","02","08","01","02","(en blanco)","(en blanco)","05","(en blanco)","(en blanco)","(en blanco)","(en blanco)","10",6500000,0,1]
[5,"ESO4.1","ESF","T",149,"01",30,21,"ES53","02","08","01","02","(en blanco)","(en blanco)","05","(en blanco)","(en blanco)","(en blanco)","(en blanco)","10",12000000,0,2]
[5,"ESO4.1","ESF","T",153,"01",30,21,"ES53","02","08","01","02","(en blanco)","(en blanco)","05","(en blanco)","(en blanco)","(en blanco)","(en blanco)","10",700000,0,1]
[5,"ESO4.1","ESF","T",153,"01",30,23,"ES53","02","08","01","02","(en blanco)","(en blanco)","05","(en blanco)","(en blanco)","(en blanco)","(en blanco)","10",4161592.15,0,1]
[5,"ESO4.6","ESF","T",151,"01",30,21,"ES53","02","08","(en blanco)","(en blanco)","(en blanco)","(en blanco)","(en blanco)","(en blanco)","(en blanco)","(en blanco)","(en blanco)","10",4800000,0,2]

{"sheet":"Copia TDCuadro 2 para carga SFC","index":6,"n_rows":5,"n_cols":24,"rows_kept":5,"cut":false,"hidden":true,"merged":[]}
[]
[]
[]
["Priority","Specific objective","Fund","Category of region","Intervention field","Form of support","Territorial delivery dimension","Economic activity dimension","Location dimension","ESF+ secondary theme","ESF+ secondary theme\n02","ESF+ secondary theme\n03","ESF+ secondary theme\n04","ESF+ secondary theme\n05","ESF+ secondary theme\n06","ESF+ secondary theme\n07","ESF+ secondary theme\n08","ESF+ secondary theme\n09","ESF+ secondary theme\n10","Gender equality dimension","Macro-regional and sea-basin dimension","Total eligible cost of selected operations (EUR)","Total eligible expenditure declared by beneficiaries","Number of selected operations"]
[{"$f":"'TD CUADRO 2'!A5","v":1},{"$f":"'TD CUADRO 2'!B5","v":"ESO4.1"},{"$f":"'TD CUADRO 2'!C5","v":"ESF"},{"$f":"'TD CUADRO 2'!D5","v":"T"},{"$f":"'TD CUADRO 2'!E5","v":134},{"$f":"'TD CUADRO 2'!F5","v":"01"},{"$f":"'TD CUADRO 2'!G5","v":30},{"$f":"'TD CUADRO 2'!H5","v":20},{"$f":"'TD CUADRO 2'!I5","v":"ES53"},{"$f":"'TD CUADRO 2'!L5","v":"01"},{"$f":"'TD CUADRO 2'!M5","v":"02"},{"$f":"'TD CUADRO 2'!N5","v":"03"},{"$f":"'TD CUADRO 2'!O5","v":"04"},{"$f":"'TD CUADRO 2'!P5","v":"05"},{"$f":"'TD CUADRO 2'!Q5","v":"(en blanco)"},{"$f":"'TD CUADRO 2'!R5","v":"(en blanco)"},{"$f":"'TD CUADRO 2'!S5","v":"(en blanco)"},{"$f":"'TD CUADRO 2'!T5","v":"(en blanco)"},{"$f":"'TD CUADRO 2'!U5","v":"10"},{"$f":"'TD CUADRO 2'!J5","v":"02"},{"$f":"'TD CUADRO 2'!K5","v":"08"},{"$f":"'TD CUADRO 2'!V5","v":4000000},{"$f":"'TD CUADRO 2'!W5","v":0},{"$f":"'TD CUADRO 2'!X5","v":1}]

{"sheet":"FICHERO CARGA CUADRO2 SFC","index":7,"n_rows":2,"n_cols":25,"rows_kept":2,"cut":false,"hidden":true,"merged":[[1,24,2,28]]}
["Priority","Specific objective","Fund","Category of region","Intervention field","Form of support","Territorial delivery dimension","Economic activity dimension","Location dimension","ESF+ secondary theme","ESF+ secondary theme\n02","ESF+ secondary theme\n03","ESF+ secondary theme\n04","ESF+ secondary theme\n05","ESF+ secondary theme\n06","ESF+ secondary theme\n07","ESF+ secondary theme\n08","ESF+ secondary theme\n09","ESF+ secondary theme\n10","Gender equality dimension","Macro-regional and sea-basin dimension","Total eligible cost of selected operations (EUR)","Total eligible expenditure declared by beneficiaries","Number of selected operations"]
[null,null,null,null,null,null,null,null,null,null,null,null,null,null,null,null,null,null,null,null,null,null,null,null,"Pega los datos de Copia TDCuadro2 para carga SFC aquí. \n¡¡¡Pegalos como valor¡¡¡"]

{"sheet":"CUADRO 2 ","index":8,"n_rows":3,"n_cols":24,"rows_kept":3,"cut":false,"hidden":true,"merged":[[0,0,0,3],[0,21,0,23],[1,0,2,0],[1,1,2,1],[1,2,2,2],[1,3,2,3],[1,21,2,21],[1,22,2,22],[1,23,2,23],[1,9,1,18],[0,4,0,20]]}
["Características del gasto",null,null,null,"Dimensión de categorización",null,null,null,null,null,null,null,null,null,null,null,null,null,null,null,null,"Datos financieros"]
["Prioridad","Objetivo específico","Fondo","Categoría de región",1,2,3,4,5,6,null,null,null,null,null,null,null,null,null,7,8,"Coste total subvencionable de las operaciones seleccionadas (EUR)","Importe total del gasto subvencionable declarado por los beneficiarios","Número de operaciones seleccionadas"]
[null,null,null,null,"Campo de intervención","Forma de ayuda","Dimensión de la aplicación territorial","Dimensión de la actividad económica","Dimensión de ubicación","Tema secundario del FSE+ 01","Tema secundario del FSE+ 02","Tema secundario del FSE+ 03","Tema secundario del FSE+ 04","Tema secundario del FSE+ 05","Tema secundario del FSE+ 06","Tema secundario del FSE+ 07","Tema secundario del FSE+ 08","Tema secundario del FSE+ 09","Tema secundario del FSE+ 10","Dimensión de igualdad de género","Dimensión macrorregional y de las cuencas marítimas"]

{"sheet":"Copia TDCuadro 2 con TSec","index":9,"n_rows":4,"n_cols":24,"rows_kept":4,"cut":false,"hidden":true,"merged":[]}
[]
[]
[]
["Priority","Specific objective","Fund","Category of region","Intervention field","Form of support","Territorial delivery dimension","Economic activity dimension","Location dimension","ESF+ secondary theme","ESF+ secondary theme\n02","ESF+ secondary theme\n03","ESF+ secondary theme\n04","ESF+ secondary theme\n05","ESF+ secondary theme\n06","ESF+ secondary theme\n07","ESF+ secondary theme\n08","ESF+ secondary theme\n09","ESF+ secondary theme\n10","Gender equality dimension","Macro-regional and sea-basin dimension","Total eligible cost of selected operations (EUR)","Total eligible expenditure declared by beneficiaries","Number of selected operations"]

{"sheet":"LISTAS PERSONALIZADAS","index":10,"n_rows":3,"n_cols":2,"rows_kept":3,"cut":false,"hidden":true,"merged":[]}
[]
["OBJETIVOS ESPECÍFICOS","ESO4.1;ESO4.2;ESO4.3;ESO4.4;ESO4.5;ESO4.6;ESO4.7;ESO4.8;ESO4.9;ESO4.10;ESO4.11;ESO4.12;ESO4.13"]
["REGIONES","M;T;L;O"]

{"sheet":"Programas","index":11,"n_rows":23,"n_cols":2,"rows_kept":23,"cut":false,"hidden":true,"merged":[]}
["CCI","TÍTULO PROGRAMA"]
["2021ES05SFPR001","FSE+ Empleo Juvenil "]
["2021ES05SFPR002","FSE+ de Educación y Formación, Empleo y  Economía Social "]
["2021ES05SFPR003","FSE+ de Inclusión Social, Garantía Infantil y Lucha Contra la Pobreza "]
["2021ES05SFPR004","FSE+ de Asistencia Material Básica "]
["2021ES05SFPR005","FSE+ C.A. Andalucía "]
["2021ES05SFPR006","FSE+ C.A. Aragón "]
["2021ES05SFPR007 ","FSE+  Principado de Asturias "]
["2021ES05SFPR008","FSE+ C.A. Illes Balears "]
["2021ES05SFPR009 ","FSE+ C.A. Canarias "]
["2021ES05SFPR010 ","FSE+ C.A. Cantabria "]
["2021ES05SFPR011 ","FSE+ C.A. Cataluña "]
["2021ES05SFPR012","FSE+ C.A. Castilla-La Mancha "]
["2021ES05SFPR013 ","FSE+ C.A. Castilla y León"]
["2021ES05SFPR014","FSE+ Ciudad A. de Ceuta "]
["2021ES05SFPR015","FSE+ Comunitat Valenciana"]
["2021ES05SFPR016","FSE+ C.A. Extremadura "]
["2021ES05SFPR017","FSE+ C.A. Galicia "]
["2021ES05SFPR018","FSE+ C.A. La Rioja"]
["2021ES05SFPR019","FSE+ C. de Madrid "]
["2021ES05SFPR020","FSE+ Ciudad A. de Melilla  "]
["2021ES05SFPR021","FSE+ Región de Murcia"]
["2021ES05SFPR022","FSE+ C. Foral de Navarra"]

{"sheet":"Fondos","index":12,"n_rows":2,"n_cols":2,"rows_kept":2,"cut":false,"hidden":true,"merged":[]}
["CÓDIGO","DESCRIPCIÓN"]
["ESF","ESF+"]

{"sheet":"Tasa cofinanciación","index":13,"n_rows":9,"n_cols":5,"rows_kept":9,"cut":false,"hidden":true,"merged":[]}
[]
[]
[null,null,null,"CODIGO","Tasa de cofinanciación"]
[null,null,null,0.85,"Menos desarrolladas"]
[null,null,null,0.6,"Transición"]
[null,null,null,0.4,"Más desarrolladas"]
[null,null,null,0.85,"Regiones ultraperiféricas o regiones septentrionales escasamente pobladas"]
[null,null,null,0.9,"BASICO"]
[null,null,null,0.95,"Prioridad 6"]

{"sheet":"Prioridades","index":14,"n_rows":9,"n_cols":2,"rows_kept":9,"cut":false,"hidden":true,"merged":[]}
["CÓDIGO","PRIORIDAD"]
[1,"Empleo, adaptabilidad, emprendimiento y economía social - FSE+"]
[2,"Inclusión social - FSE+ "]
[3,"Educación y formación - FSE+ "]
[4,"Lucha contra la privación material - FSE+ "]
[5,"Empleo juvenil - FSE+"]
[6,"Acciones sociales innovadoras - FSE+ "]
[7,"Garantía Infantil - FSE+ "]
[8,"Empleo, inclusión social y educación RUP - FSE+ RUP 85%"]

{"sheet":"Objeticos específicos","index":15,"n_rows":14,"n_cols":2,"rows_kept":14,"cut":false,"hidden":true,"merged":[]}
["CÓDIGO","OBJETIVO ESPECÍFICO"]
["ESO4.1","a) mejorar el acceso al empleo y las medidas de activación para el empleo de los demandantes de empleo, en particular de los jóvenes, especialmente mediante la aplicación de la Garantía Juvenil, los desempleados de larga duración y los grupos desfavorecidos, así como de las personas inactivas, así como mediante la promoción del empleo por cuenta propia y la economía social "]
["ESO4.2","b) modernizar las instituciones y los servicios del mercado de trabajo para evaluar y prever las necesidades de capacidades y garantizar una asistencia oportuna y personalizada y el apoyo a la adecuación entre la oferta y la demanda en el mercado de trabajo,  las transiciones y la movilidad;"]
["ESO4.3","c) promover una participación equilibrada de género en el mercado de trabajo, unas condiciones de trabajo equitativas y una mejora del equilibrio entre la vida laboral y la familiar, en particular mediante el acceso a unos servicios asequibles de atención a la infancia y de atención a personas dependientes;"]
["ESO4.4","d) promover la adaptación de los trabajadores, las empresas y los emprendedores al cambio, el envejecimiento activo y saludable y un entorno de trabajo saludable y bien adaptado que aborde los riesgos para la salud;"]
["ESO4.5","e) mejorar la calidad, inclusividad, eficacia y pertinencia para el mercado laboral de los sistemas de educación y formación, también mediante la validación del aprendizaje no formal e informal, para apoyar la adquisición de competencias clave, incluidas las capacidades empresariales y digitales, y promoviendo la introducción de sistemas de formación dual y de formación de aprendices;"]
["ESO4.6","f) promover la igualdad de acceso a una educación y una formación de calidad e inclusivas y su culminación, en particular para los grupos desfavorecidos, desde la educación infantil y cuidados de la primera infancia, pasando por la educación y la formación generales y profesionales, hasta la educación superior, así como la educación y el aprendizaje de las personas adultas, facilitando también la movilidad para el aprendizaje para todos y la accesibilidad de las personas con discapacidad;"]
["ESO4.7","g) promover el aprendizaje permanente, en particular mediante oportunidades para todos de mejora y reciclaje flexibles de las capacidades teniendo en cuenta las capacidades empresariales y digitales, una mejor previsión de los cambios y nuevos requisitos de capacidades, habida cuenta de las necesidades del mercado de trabajo, facilitando las transiciones profesionales y promoviendo la movilidad profesional"]
["ESO4.8","h) fomentar la inclusión activa al objeto de promover la igualdad de oportunidades, la no discriminación y la participación activa, y mejorar la empleabilidad, en particular para los grupos desfavorecidos;"]
["ESO4.9","i) promover la integración socioeconómica de los nacionales de terceros países, incluidos los migrantes;"]
["ESO4.10","j) promover la integración socioeconómica de las comunidades marginadas, como la población romaní;"]
["ESO4.11","k) mejorar la igualdad y la oportunidad del acceso a unos servicios de calidad, sostenibles y asequibles, incluidos los servicios que promueven el acceso a la vivienda y a una atención centrada en las personas, incluida la asistencia sanitaria; modernizar los sistemas de protección social, también fomentando el acceso a la protección social, con especial atención a los menores y los grupos desfavorecidos; mejorar la accesibilidad, también para personas con discapacidad, la efectividad y la resiliencia de los sistemas de asistencia sanitaria y de los servicios de cuidados de larga duración;"]
["ESO4.12","l) promover la integración social de las personas en riesgo de pobreza o exclusión social, incluidas las personas más desfavorecidas y la población infantil;"]
["ESO4.13","m) hacer frente a la privación material mediante alimentos y/o prestación de asistencia material básica a las personas más desfavorecidas, en particular a los menores, y establecer medidas de acompañamiento que apoyen su inclusión social."]

{"sheet":"Categorías de región","index":16,"n_rows":5,"n_cols":4,"rows_kept":5,"cut":false,"hidden":true,"merged":[]}
["CÓDIGO SFC","CATEGORÍAS DE REGIÓN","Código FSEPLUS","CATEGORÍA DE REGIÓN"]
["L","Less Developed","MeD","Menos desarrolladas"]
["T","Transition","EnT","Transición"]
["M","More Developed","MaD","Más desarrolladas"]
["O","Outermost or Northern Sparsely Populated","RUP","Regiones ultraperiféricas o regiones septentrionales escasamente pobladas"]

{"sheet":"Aplicación art 94 o 95","index":17,"n_rows":6,"n_cols":2,"rows_kept":6,"cut":false,"hidden":true,"merged":[]}
["CÓDIGO","ARTÍCULO 94 o  95 "]
["N/A","No aplican art. 94 ni art. 95"]
["ART94-PRO","Artículo 94. Programa. Apéndice 1."]
["ART94-REG","Artículo 94. Reglamento Delegado."]
["ART95-PRO","Artículo 95. Programa. Apéndice 1."]
["ART95-REG","Artículo 95. Reglamento Delegado."]

{"sheet":"Métodos de Gestión","index":18,"n_rows":8,"n_cols":2,"rows_kept":8,"cut":false,"hidden":true,"merged":[]}
["CÓDIGO","MÉTODO DE GESTIÓN"]
["GD-ED","Gestión directa: Ejecución directa"]
["GD-CONV","Gestión directa: Convenios"]
["GD-ENC","Gestión directa: Encomienda de gestión"]
["GD-MP","Gestión directa: Encargo a medios propios"]
["GC-CONC","Gestión directa: Conciertos"]
["GI-CONT","Gestión Indirecta: Contrato"]
["CS","Convocatoria de subvenciones"]

{"sheet":"Tipología de operación","index":19,"n_rows":26,"n_cols":2,"rows_kept":26,"cut":false,"hidden":true,"merged":[]}
["CODIGO","TIPOLOGÍA DE OPERACIÓN"]
["1A","Formación a lo largo de la vida laboral "]
["1B","Formación Profesional"]
["1C","Formación de Personal Investigador y Ayudas Predoctorales e impulso a la investigación"]
[2,"Itinerarios Integrados"]
[3,"Orientación académica y/o profesional"]
[4,"Becas y ayudas para la educación y la formación"]
["5A","Ayudas para el fomento de la contratación"]
["5B","Bonificaciones y reducciones de cuotas a la Seguridad Social"]
["5C","Ayudas para el fomento del empleo protegido"]
[6,"Apoyo a los emprendedores y a la creación de empresas"]
["7A","Ayudas a la movilidad geográfica y funcional de trabajadores"]
["7B","Ayudas para mejoras de sistemas en las empresas"]
[8,"Iniciativas locales de empleo, pactos territoriales y otras ayudas en el ámbito local"]
[9,"Acciones frente al abandono escolar"]
[10,"Innovación social"]
[11,"Ayudas a redes y asociaciones"]
[12,"Impulso y promoción de la conciliación de la vida laboral y familia, así como de la igualdad de oportunidades, de la igualdad de trato, de la no discriminación y del fomento de la autonomía personal"]
["13A","Actualizaciones curriculares y de los catálogos de cualificaciones"]
["13B","Mejora del funcionamiento y calidad del Sistema Educativo y de la Formación Profesional"]
[14,"Actuaciones de modernización y mejora de los servicios de empleo y mercado de trabajo"]
[15,"Provisiones de ayuda de alimentos y productos básicos, así como medidas sociolaborales de acompañamiento que se recogen en el Programa Básico"]
[16,"Acciones de carácter socio-sanitario "]
[17,"Intervenciones centradas en la lucha para erradicar la exclusión de vivienda"]
[18,"Medidas de intervención directa y de los servicios sociales"]
["Pendiente","Requiere nueva tipología"]

{"sheet":"CAMPO DE INTERVENCIÓN","index":20,"n_rows":58,"n_cols":2,"rows_kept":58,"cut":false,"hidden":true,"merged":[]}
["CODIGO","CAMPO DE INTERVENCIÓN"]
[121,"Infraestructuras para la educación y el cuidado de la primera infancia"]
[122,"Infraestructuras para la enseñanza primaria y secundaria"]
[123,"Infraestructuras para la enseñanza superior"]
[124,"Infraestructuras para la educación y la formación profesional y el aprendizaje de adultos"]
[125,"Infraestructuras de vivienda para migrantes, refugiados y personas bajo protección internacional o que soliciten protección internacional"]
[126,"Infraestructuras de vivienda (para personas distintas de los migrantes, refugiados y personas bajo protección internacional o que soliciten protección internacional)"]
[127,"Otras infraestructuras sociales que contribuyen a la inclusión social en la comunidad"]
[128,"Infraestructuras sanitarias "]
[129,"Equipos sanitarios "]
[130,"Bienes muebles para servicios sanitarios"]
[131,"Digitalización en el sector sanitario "]
[132,"Equipos y suministros críticos necesarios para hacer frente a una situación de emergencia "]
[133,"Infraestructuras de acogida temporal para migrantes, refugiados y personas bajo protección internacional o que soliciten protección internacional"]
[134,"Medidas para mejorar el acceso al empleo "]
[135,"Medidas para fomentar el acceso al empleo de los desempleados de larga duración "]
[136,"Ayuda específica para el empleo juvenil y la integración socioeconómica de los jóvenes"]
[137,"Apoyo al trabajo por cuenta propia y a la creación de empresas"]
[138,"Apoyo para la economía social y las empresas sociales"]
[139,"Medidas para modernizar y reforzar las instituciones y servicios del mercado laboral para evaluar y anticipar las necesidades en materia de capacidades y garantizar una asistencia personalizada y oportuna"]
[140,"Apoyo a la adecuación entre la demanda y la oferta de empleo y las transiciones en el mercado laboral "]
[141,"Apoyo a la movilidad laboral"]
[142,"Medidas para promover la participación de las mujeres y reducir la segregación de género en el mercado laboral"]
[143,"Medidas de fomento del equilibrio entre vida privada y vida laboral, incluido el acceso a los servicios de guardería y de atención a las personas dependientes"]
[144,"Medidas para un entorno de trabajo sano y bien adaptado para hacer frente a los riesgos para la salud, incluida la promoción de la actividad física"]
[145,"Apoyo al desarrollo de las capacidades digitales"]
[146,"Apoyo a la adaptación al cambio de trabajadores, empresas y emprendedores"]
[147,"Medidas para fomentar el envejecimiento activo y saludable"]
[148,"Apoyo a la educación y el cuidado de la primera infancia (excluidas las infraestructuras)"]
[149,"Apoyo a la enseñanza primaria y secundaria (excluidas las infraestructuras)"]
[150,"Apoyo a la enseñanza terciaria (excluidas las infraestructuras)"]
[151,"Apoyo a la educación de personas adultas (excluidas las infraestructuras)"]
[152,"Medidas para promover la igualdad de oportunidades y la participación activa en la sociedad"]
[153,"Vías de integración y reintegración en el mundo laboral de las personas desfavorecidas"]
[154,"Medidas destinadas a mejorar el acceso de colectivos marginados como los gitanos a la educación y el empleo, y a promover su inclusión social"]
[155,"Apoyo a la sociedad civil activa con las comunidades marginadas, como la gitana"]
[156,"Acciones específicas destinadas a aumentar la participación de nacionales de terceros países en el empleo"]
[157,"Medidas para la integración social de los nacionales de terceros países"]
[158,"Medidas para mejorar el acceso equitativo y oportuno a servicios de calidad, sostenibles y asequibles"]
[159,"Medidas para mejorar la prestación de servicios locales y familiares"]
[160,"Medidas para mejorar la accesibilidad, la eficacia y la resiliencia de los sistemas sanitarios (excluidas las infraestructuras)"]
[161,"Medidas destinadas a mejorar el acceso a los cuidados de larga duración (excluidas las infraestructuras)"]
[162,"Medidas para modernizar los sistemas de protección social, incluido el fomento del acceso a la protección social"]
[163,"Promoción de la integración social de personas en riesgo de pobreza o exclusión social, en particular las más desfavorecidas y los niños"]
[164,"Subsanar las carencias materiales de los más desfavorecidos mediante la provisión de alimentos o asistencia material, incluidas medidas de acompañamiento."]
[170,"Mejora de la capacidad de las autoridades responsables de los programas y de los organismos vinculados a la ejecución de los Fondos"]
[171,"Mejora de la cooperación con socios tanto internos como externos al Estado miembro "]
[172,"Financiación cruzada en el marco del FEDER (apoyo a acciones asimilables a las del FSE+ necesarias para la ejecución satisfactoria de la parte del FEDER de la operación y relacionadas directamente con ella)."]
[173,"Mejora de la capacidad institucional de las autoridades públicas y las partes interesadas para implementar los proyectos e iniciativas de cooperación territorial en un contexto transfronterizo, transnacional, marítimo e interregional"]
[174,"Interreg: gestión del cruce fronterizo y gestión de la movilidad y la migración "]
[175,"Regiones ultraperiféricas: compensación de los costes adicionales derivados del déficit de accesibilidad y la fragmentación territorial"]
[176,"Regiones ultraperiféricas: acción específica de compensación de los costes adicionales derivados de factores relativos al tamaño del mercado"]
[177,"Regiones ultraperiféricas: ayudas para compensar los costes adicionales derivados de las condiciones climáticas y las dificultades del terreno"]
[178,"Regiones ultraperiféricas: aeropuertos "]
[179,"Información y comunicación"]
[180,"Preparación, ejecución, seguimiento y control"]
[181,"Evaluación y estudios, recogida de datos"]
[182,"Refuerzo de la capacidad de las autoridades de los Estados miembros, los beneficiarios y los socios pertinentes"]

{"sheet":"Forma de ayuda","index":21,"n_rows":7,"n_cols":2,"rows_kept":7,"cut":false,"hidden":true,"merged":[]}
["CODIGO","FORMA DE AYUDA"]
["01","Subvención"]
["02","Ayuda mediante instrumentos financieros: capital o cuasicapital"]
["03","Ayuda mediante instrumentos financieros: préstamo"]
["04","Ayuda mediante instrumentos financieros: garantía"]
["05","Apoyo mediante instrumentos financieros: Subvenciones en una operación de instrumentos financieros"]
["06","Premio"]

{"sheet":"D. Intervención territorial","index":22,"n_rows":34,"n_cols":3,"rows_kept":34,"cut":false,"hidden":true,"merged":[]}
["CODIGO","D. Aplicación territorial","DESCRIPCION"]
["01","01-Inversión territorial integrada","Barrios urbanos"]
["02","01-Inversión territorial integrada","Ciudades, municipios y extrarradio"]
["03","01-Inversión territorial integrada","Zonas urbanas funcionales"]
["04","01-Inversión territorial integrada","Zonas rurales"]
["05","01-Inversión territorial integrada","Zonas montañosas"]
["06","01-Inversión territorial integrada","Islas y zonas costeras"]
["07","01-Inversión territorial integrada","Zonas con escasa densidad de población"]
["08","01-Inversión territorial integrada","Otros tipos de territorios destinatarios"]
["09","02-Desarrollo local participativo","Barrios urbanos"]
[10,"02-Desarrollo local participativo","Ciudades, municipios y extrarradio"]
[11,"02-Desarrollo local participativo","Zonas urbanas funcionales"]
[12,"02-Desarrollo local participativo","Zonas rurales"]
[13,"02-Desarrollo local participativo","Zonas montañosas"]
[14,"02-Desarrollo local participativo","Islas y zonas costeras"]
[15,"02-Desarrollo local participativo","Zonas con escasa densidad de población"]
[16,"02-Desarrollo local participativo","Otros tipos de territorios destinatarios"]
[17,"03-Otro tipo de instrumento territorial","Barrios urbanos"]
[18,"03-Otro tipo de instrumento territorial","Ciudades, municipios y extrarradio"]
[19,"03-Otro tipo de instrumento territorial","Zonas urbanas funcionales"]
[20,"03-Otro tipo de instrumento territorial","Zonas rurales"]
[21,"03-Otro tipo de instrumento territorial","Zonas montañosas"]
[22,"03-Otro tipo de instrumento territorial","Islas y zonas costeras"]
[23,"03-Otro tipo de instrumento territorial","Zonas con escasa densidad de población"]
[24,"03-Otro tipo de instrumento territorial","Otros tipos de territorios destinatarios"]
[25,"04-Otros enfoques","Barrios urbanos"]
[26,"04-Otros enfoques","Ciudades, municipios y extrarradio"]
[27,"04-Otros enfoques","Zonas urbanas funcionales"]
[28,"04-Otros enfoques","Zonas rurales"]
[29,"04-Otros enfoques","Zonas montañosas"]
[30,"04-Otros enfoques","Islas y zonas costeras"]
[31,"04-Otros enfoques","Zonas con escasa densidad de población"]
[32,"04-Otros enfoques","Otros tipos de territorios destinatarios"]
[33,"04-Otros enfoques","Sin enfoque territorial"]

{"sheet":"D. Actividad económica","index":23,"n_rows":27,"n_cols":2,"rows_kept":27,"cut":false,"hidden":true,"merged":[]}
["CODIGO","D. ACTIVIDAD ECONÓMICA"]
["01","Agricultura y silvicultura"]
["02","Pesca"]
["03","Acuicultura"]
["04","Otros sectores de la economía azul"]
["05","Elaboración de productos alimenticios y bebidas"]
["06","Industria textil y de la confección"]
["07","Fabricación de material de transporte"]
["08","Fabricación de productos informáticos, electrónicos y ópticos"]
["09","Otras industrias manufactureras no especificadas"]
[10,"Construcción"]
[11,"Industrias de extracción (incluida la extracción de productos energéticos)"]
[12,"Energía eléctrica, gas, vapor, agua caliente y aire acondicionado"]
[13,"Suministro de agua, actividades de saneamiento, gestión de residuos y descontaminación"]
[14,"Transporte y almacenamiento"]
[15,"Actividades de información y comunicaciones, incluidas las telecomunicaciones, los servicios de información, la programación de ordenadores, la consultoría y otras actividades relacionadas"]
[16,"Comercio al por mayor y al por menor"]
[17,"Turismo y hostelería"]
[18,"Actividades financieras y de seguros"]
[19,"Actividades inmobiliarias y de alquiler; servicios prestados a las empresas"]
[20,"Administración pública"]
[21,"Enseñanza"]
[22,"Actividades sanitarias"]
[23,"Asistencia social, servicios prestados a la comunidad y servicios sociales y personales"]
[24,"Actividades relacionadas con el medio ambiente y el cambio climático"]
[25,"Artes, espectáculos, industrias creativas y ocio"]
[26,"Otros servicios no especificados"]

{"sheet":"D. Ubicación","index":24,"n_rows":21,"n_cols":2,"rows_kept":21,"cut":false,"hidden":true,"merged":[]}
["CÓDIGO","D. UBICACIÓN"]
["ES11","Galicia"]
["ES12","Principado de Asturias"]
["ES13","Cantabria"]
["ES21","País Vasco"]
["ES22","Comunidad Foral de Navarra"]
["ES23","La Rioja"]
["ES24","Aragón"]
["ES30","Comunidad de Madrid"]
["ES41","Castilla y León"]
["ES42","Castilla La Mancha"]
["ES43","Extremadura"]
["ES51","Cataluña"]
["ES52","Comunitad Valenciana"]
["ES53","Illes Balears"]
["ES61","Andalucía"]
["ES62","Región de Murcia"]
["ES63","Ciudad Autónoma de Ceuta"]
["ES64","Ciudad Autónoma de Melilla"]
["ES70","Canarias"]
["ES","Todas"]

{"sheet":"D. Tema secundario del FSE+","index":25,"n_rows":11,"n_cols":13,"rows_kept":11,"cut":false,"hidden":true,"merged":[]}
["CODIGO","D. Tema secundario del FSE+",null,"CODIGO\nT.SEC 01","CODIGO\nT.SEC 02","CODIGO\nT.SEC 03","CODIGO\nT.SEC 04","CODIGO\nT.SEC 05","CODIGO\nT.SEC 06","CODIGO\nT.SEC 07","CODIGO\nT.SEC 08","CODIGO\nT.SEC 09","CODIGO\nT.SEC 10"]
["01","Contribución a las competencias y empleos verdes y a la economía ecológica"]
["02","Desarrollo de capacidades y empleos digitales",null,"01","02","03","04","05","06","07","08","09","10"]
["03","Inversión en investigación e innovación y especialización inteligente"]
["04","Inversión en pequeñas y medianas empresas (pymes)"]
["05","No discriminación"]
["06","Hacer frente a la pobreza infantil"]
["07","Capacitación de los interlocutores sociales"]
["08","Capacitación de las organizaciones de la sociedad civil"]
["09","No procede"]
["10","Abordar los retos señalados en Semestre Europeo "]

{"sheet":"D. Igualdad de género","index":26,"n_rows":4,"n_cols":2,"rows_kept":4,"cut":false,"hidden":true,"merged":[]}
["CODIGO","D. IGUALDAD DE GÉNERO"]
["01","Proyectos centrados en las cuestiones de género "]
["02","Proyectos que integran la perspectiva de género "]
["03","Neutralidad desde el punto de vista del género"]

{"sheet":"Macrorregionales y Cuencas M","index":27,"n_rows":12,"n_cols":2,"rows_kept":12,"cut":false,"hidden":true,"merged":[]}
["CODE","D. MACRORREGIONAL Y DE LAS CUENCAS MARÍTIMAS\t"]
["11","No contribución a las estrategias macrorregionales y de las cuencas marítimas."]
["10","Estrategia para la Región del Mediterráneo Occidental"]
["09","Mar del Norte"]
["08","Mar Mediterráneo"]
["07","Mar Negro"]
["06","Estrategia para la Región Atlántica"]
["05","Océano Ártico"]
["04","Estrategia para la Región del Danubio"]
["03","Estrategia para la Región del Mar Báltico"]
["02","Estrategia para la Región Alpina"]
["01","Estrategia para la Región del Adriático y del Jónico"]